Workbook

Sheet Introduction
A3: . . . . . . . . . . . . . . . . . . . . . . . . . . . . . . . . . . . . . . . . . . . . . . . . .
A5: Guidelines For Estimating
A6: Beef Feedlot Finishing Costs
A7: ="For Weight Range of "&Input!D15&" - "&Input!D17&" lbs." -> For Weight Range of 650 - 1400 lbs.
A8: ="Based on feeding "&Input!D13&" Steers" -> Based on feeding 500 Steers
H12: Date: | J12: September, 2023
B16: This guide is designed to provide you with planning information and a format for calculating costs of production of a beef cattle feedlot finishing enterprise in Manitoba. General Manitoba Agriculture recommendations are assumed in using feed and veterinary inputs. These figures provide an economic evaluation of the livestock and estimated prices required to cover all costs. Costs include labour, investment and depreciation, but do not include management costs, nor do they necessarily represent the average cost of production in Manitoba.
B24: Cattle feeding is a high risk business requiring large amounts of short term capital to buy feeder cattle and feed. With cyclical price variations for both livestock and feed, successful management involves careful consideration of costs, projection of markets and sound judgement.
B30: These budgets may be adjusted by putting in your own figures. As a producer you are encouraged to calculate your own costs of production. Good management is assumed in that a balanced ration is being fed, livestock are on a herd health program and handling facilities are included.
B36: This tool is available as an Excel worksheet at:
B43: is also available to help
B44: determine machinery costs.
B46: Note: This budget is only a guide and is not intended as an in-depth study of the cost of production of this industry. Interpretation and use of this information is the responsibility of the user. If you need help with a budget, contact a Farm Management Specialist.

Sheet Summary
A1: ="Feedlot Finishing Cost Summary " & Introduction!J12 -> Feedlot Finishing Cost Summary September, 2023
A2: ="Based on feeding "&Input!D13&" steers for weight range "&Input!D15&" to "&Input!D17&" lbs." -> Based on feeding 500 steers for weight range 650 to 1400 lbs.
F4: Cost/Head | H4: Total Cost | J4: Your Cost
A5: A. Operating Costs
A6: 1. Feed Costs
A7: 1.01 Rolled Barley | F7: =Details!E19 -> 556.45 | H7: =ROUND(F7*Input!$D$13,0) -> 278225
A8: 1.02 Barley Silage | F8: =Details!E26 -> 79.41 | H8: =ROUND(F8*Input!$D$13,0) -> 39705
A9: 1.03 Alfalfa Grass Hay | F9: =Details!E33 -> 4.5 | H9: =ROUND(F9*Input!$D$13,0) -> 2250
A10: 1.04 Supplement | F10: =Details!E40 -> 52.38 | H10: =ROUND(F10*Input!$D$13,0) -> 26190
A11: Total Feed Costs | F11: =SUM(F7:F10) -> 692.74 | H11: =SUM(H7:H10) -> 346370
A12: 2. Other Operating Costs
A13: 2.01 Feeder Cost | F13: =Details!E59 -> 2294.3 | H13: =ROUND(F13*Input!$D$13,0) -> 1147150
A14: 2.02 Straw | F14: =Details!E64 -> 35 | H14: =ROUND(F14*Input!$D$13,0) -> 17500
A15: 2.03 Veterinary Medicine & Supplies | F15: =Details!E89 -> 28.49 | H15: =ROUND(F15*Input!$D$13,0) -> 14245
A16: 2.04 Annual Fuel & Repair Costs | F16: =Details!E115 -> 14.52368 | H16: =ROUND(F16*Input!$D$13,0) -> 7262
A17: 2.05 Utilities | F17: =Details!E120 -> 7.01 | H17: =ROUND(F17*Input!$D$13,0) -> 3505
A18: 2.06 Marketing & Transportation | F18: =Details!E133 -> 122.17 | H18: =ROUND(F18*Input!$D$13,0) -> 61085
A19: 2.07 Insurance | F19: =Details!E152 -> 1.8 | H19: =ROUND(F19*Input!$D$13,0) -> 900
A20: 2.08 Manure Removal | F20: =Details!E157 -> 14 | H20: =ROUND(F20*Input!$D$13,0) -> 7000
A21: 2.09 Barn & Office Supplies | F21: =Details!E162 -> 1.8 | H21: =ROUND(F21*Input!$D$13,0) -> 900
A22: 2.10 Death Loss | F22: =Details!E170 -> 53.84 | H22: =ROUND(F22*Input!$D$13,0) -> 26920
A23: Subtotal Operating Costs | F23: =SUM(F11:F22) -> 3265.67368 | H23: =SUM(H11:H22) -> 1632837
A24: 2.11 Operating Interest | F24: =Details!E178 -> 156.81 | H24: =ROUND(F24*Input!$D$13,0) -> 78405
A25: Total Operating Costs | F25: =F23+F24 -> 3422.48368 | H25: =H23+H24 -> 1711242
A26: B. Fixed Costs
A27: 3. Depreciation
A28: 3.01 Buildings | F28: =Details!E211 -> 7.46 | H28: =F28*Input!$D$13 -> 3730
A29: 3.02 Machinery & Equipment | F29: =Details!E218 -> 20.8 | H29: =F29*Input!$D$13 -> 10400
A30: 4. Investment
A31: 4.01 Buildings | F31: =Details!E228 -> 3.65 | H31: =F31*Input!$D$13 -> 1825
A32: 4.02 Machinery & Equipment | F32: =Details!E236 -> 6.24 | H32: =F32*Input!$D$13 -> 3120
A33: Total Fixed Costs | F33: =SUM(F28:F32) -> 38.15 | H33: =SUM(H28:H32) -> 19075
A34: Total Operating and Fixed Costs | F34: =F25+F33 -> 3460.63368 | H34: =H25+H33 -> 1730317
A36: C. Owners - Labour & Living | F36: =Details!E241 -> 54 | H36: =F36*Input!$D$13 -> 27000
A37: TOTAL COST OF PRODUCTION | F37: =F34+F36 -> 3514.63368 | H37: =H34+H36 -> 1757317
D39: Profitability and Breakeven Analysis
A41: Estimated Farmgate | F41: Per Head | H41: Total
A42: =" Gross Revenue @ $"&Input!D18&"/cwt market price" -> Gross Revenue @ $248/cwt market price | F42: =Breakeven!E48 -> 3298.4 | H42: =ROUND(F42*Input!$D$13,0) -> 1649200
A45: Breakeven Analysis | F45: Breakeven Purchase | H45: Breakeven Selling
F46: Price ($/cwt) @ | H46: Price ($/cwt) @
F47: ="$"&Input!D18&"/cwt market price" -> $248/cwt market price | H47: ="$"&Input!D16&"/cwt feeder price" -> $350/cwt feeder price
A48: Operating Costs | F48: =Breakeven!E51*100 -> 330.9102031 | H48: =Breakeven!E31*100 -> 257.3296
A49: Operating Costs & Labour | F49: =Breakeven!E58*100 -> 322.6025108 | H49: =Breakeven!E35*100 -> 261.3897504
A50: Operating & Fixed Costs | F50: =Breakeven!E65*100 -> 325.0409723 | H50: =Breakeven!E39*100 -> 260.1980211
A51: Total Costs | F51: =Breakeven!E72*100 -> 316.73328 | H51: =Breakeven!E43*100 -> 264.2581714
F53: Cost per lb of | H53: Marginal Returns per head
F54: gain sold ($/cwt) | H54: ="@ $"&Input!D18&" /cwt market price" -> @ $248 /cwt market price
A55: Feed Costs | F55: =Breakeven!E7*100 -> 101.8735294
A56: Operating Costs | F56: =Breakeven!E12*100 -> 168.7476 | H56: =Breakeven!E48-F25 -> -124.08368
A57: Operating Costs & Labour | F57: =Breakeven!E17*100 -> 176.6887765 | H57: =Breakeven!E48-F25-F36 -> -178.08368
A58: Operating & Fixed Costs | F58: =Breakeven!E22*100 -> 174.3578941 | H58: =Breakeven!E48-F34 -> -162.23368
A59: Total Costs | F59: =Breakeven!E27*100 -> 182.2990706 | H59: =Breakeven!E48-F37 -> -216.23368
A61: Return on Investment (ROI) | F61: =(F42-F37)/F37 -> -0.06152381718
A62: Estimated Return on Asset (ROA) | F62: =((F42-F25-F36-F28-F29)/(Input!D132/Input!D13)) -> -0.4846251116
A64: Note: This budget is only a guide and is not intended as an in-depth study of the cost of production of this industry. Interpretation and utilization of this information is the responsibility of the user. No liability for decisions based on this publication is assumed.

Sheet Risk Analysis
A1: Risk & Sensitivity Analysis (Stress Test)
A2: A. Operating Costs | E2: ***HIDE***
B3: Feed cost | C3: =Summary!F11 -> 692.74
B4: Feeder Cost | C4: =Summary!F13 -> 2294.3
B5: Other Operating Costs | C5: =Summary!F25-Summary!F13-Summary!F11 -> 435.44368
B6: Subtotal | C6: =SUM(C3:C5) -> 3422.48368
A7: B. Fixed Costs | C7: =Summary!F33 -> 38.15
A8: C. Labour | C8: =Summary!F36 -> 54
A9: Total Costs | C9: =SUM(C6:C8) -> 3514.63368
A11: Estimated Farmgate
B12: Price ($ per cwt) | C12: =Input!D18 -> 248
B15: Percent Market Price Change | C15: -0.025
B16: Percent Feed Cost Change | C16: 0.05
B17: Percent Feeder Cost Change | C17: 0.05
C20: Per Head
B21: Market Price ($ per cwt) | C21: =SUM(C12*(1+C15)) -> 241.8
B22: Feed Cost | C22: =SUM(C3+(C3*C16)) -> 727.377
B23: Feeder Cost | C23: =SUM(C4+(C4*C17)) -> 2409.015
A25: ="Stress Test Scenario = Market Price "&IF(C15<0,"Down","Up")&" "&ABS(C15*100)&"%, Feed Price "&IF(C16<0,"Down","Up")&" "&ABS(C16*100)&"% and Feeder Cost "&IF(C17<0,"Down","Up")&" "&ABS(C17*100)&"%" -> Stress Test Scenario = Market Price Down 2.5%, Feed Price Up 5% and Feeder Cost Up 5%
B26: Operating Costs | C26: =SUM(C5+C22+C23) -> 3571.83568
B27: Total Costs | C27: =C7+C8+C26 -> 3663.98568
B28: Gross Revenue / feeder | C28: =Breakeven!E46*('Risk Analysis'!C21/100) -> 3215.94
B29: Marginal Returns
B30: Over Operating Costs | C30: =SUM(C28-C26) -> -355.89568
B31: Over Operating & Labour Costs | C31: =SUM(C28-C26-C8) -> -409.89568
B32: Over Total Costs (Net Profit) | C32: =SUM(C28-C27) -> -448.04568
B34: Operating Expense Ratio | C34: =SUM(C26/C28) -> 1.110666144
A36: Estimated Breakeven Canadian Dollar Analysis
C38: ="Est. Market Price ($/cwt Cdn) @ "&TEXT(Input!D19,"0.0000")&" Cdn per USD" -> Est. Market Price ($/cwt Cdn) @ 0.7500 Cdn per USD
C39: =SUM($E$39-10) -> 238 | D39: =SUM($E$39-5) -> 243 | E39: =Input!D18 -> 248 | F39: =SUM($E$39+5) -> 253 | G39: =SUM($E$39+10) -> 258
A40: Breakeven CDN Dollar ($1 Cdn = $ USD)
B41: Operating Costs | C41: =SUM((C39/100)*Breakeven!$E$46*Input!$D$19)/Summary!$F$25 -> 0.6936629132 | D41: =SUM((D39/100)*Breakeven!$E$46*Input!$D$19)/Summary!$F$25 -> 0.7082356635 | E41: =SUM((E39/100)*Breakeven!$E$46*Input!$D$19)/Summary!$F$25 -> 0.7228084138 | F41: =SUM((F39/100)*Breakeven!$E$46*Input!$D$19)/Summary!$F$25 -> 0.7373811641 | G41: =SUM((G39/100)*Breakeven!$E$46*Input!$D$19)/Summary!$F$25 -> 0.7519539144
B42: Operating & Labour Costs | C42: =SUM((C39/100)*Breakeven!$E$46*Input!$D$19)/(Summary!$F$25+Summary!$F$36) -> 0.6828882913 | D42: =SUM((D39/100)*Breakeven!$E$46*Input!$D$19)/(Summary!$F$25+Summary!$F$36) -> 0.697234684 | E42: =SUM((E39/100)*Breakeven!$E$46*Input!$D$19)/(Summary!$F$25+Summary!$F$36) -> 0.7115810767 | F42: =SUM((F39/100)*Breakeven!$E$46*Input!$D$19)/(Summary!$F$25+Summary!$F$36) -> 0.7259274693 | G42: =SUM((G39/100)*Breakeven!$E$46*Input!$D$19)/(Summary!$F$25+Summary!$F$36) -> 0.740273862
B43: Operating, Fixed & Labour Costs | C43: =SUM((C39/100)*Breakeven!$E$46*Input!$D$19)/(Summary!$F$25+Summary!$F$33+Summary!$F$36) -> 0.6754758009 | D43: =SUM((D39/100)*Breakeven!$E$46*Input!$D$19)/(Summary!$F$25+Summary!$F$33+Summary!$F$36) -> 0.689666469 | E43: =SUM((E39/100)*Breakeven!$E$46*Input!$D$19)/(Summary!$F$25+Summary!$F$33+Summary!$F$36) -> 0.7038571371 | F43: =SUM((F39/100)*Breakeven!$E$46*Input!$D$19)/(Summary!$F$25+Summary!$F$33+Summary!$F$36) -> 0.7180478052 | G43: =SUM((G39/100)*Breakeven!$E$46*Input!$D$19)/(Summary!$F$25+Summary!$F$33+Summary!$F$36) -> 0.7322384733
A45: ="Breakeven Canadian Dollar = (Est. Market Price ($/lb) x Shrunk Wt. (lbs) x $ Cdn per USD) / Cost" -> Breakeven Canadian Dollar = (Est. Market Price ($/lb) x Shrunk Wt. (lbs) x $ Cdn per USD) / Cost
A46: =" (eg. ($"&TEXT(E39/100,"0.00")&" x "&ROUND(Breakeven!E46,0)&" lbs x $"&TEXT(Input!D19,"0.0000")&") / $"&TEXT(Summary!F37,"0.00")&") = $"&TEXT(E43,"0.0000") -> (eg. ($2.48 x 1330 lbs x $0.7500) / $3514.63) = $0.7039
A48: Note: This budget is only a guide and is not intended as an in depth study of the cost of production of this industry. Interpretation and utilization of this information is the responsibility of the user.

Sheet Input
K1: HIDE
A2: Feedlot Finishing Production Costs - Input
A5: Assumptions
A6: 1. This budget outlines the cost of production for a cattle feeder's operation.
A7: 2. Buildings and equipment are valued at new cost.
A8: 3. All feed is purchased.
A11: Herd Profile | D11: Total
A13: Number of Feeders Purchased | D13: 500 | E13: head
A14: Feeder Cattle Mortality Rate | D14: 2 | E14: %
A15: Feeder Purchased Weight | D15: 650 | E15: lbs
A16: Feeder Cattle Price | D16: 350 | E16: /cwt
A17: Finish Weight | D17: 1400 | E17: lbs
A18: Finish Selling Price | D18: 248 | E18: /cwt
A19: $1 Canadian Dollar | C19: ="($"&TEXT(1/D19,"#.####")&" CDN )" -> ($1.3333 CDN ) | D19: 0.75 | E19: / $1 USD
A20: WLPIP Insurance Premium | D20: 0 | E20: /cwt
A21: Percent Shrink - finished | D21: 5 | E21: %
A22: Percent Shrink - feeder | D22: 0 | E22: %
A23: Average Daily Gain | D23: 3.25 | E23: lbs/day
A24: Days On Feed | D24: =ROUND((D17-(D15-(D15*D22/100)))/D23,0) -> 231 | E24: days
A26: FOOTNOTE: 1 kilogram (kg) = 2.2046 pounds (lbs)
D28: Feeder Cattle | G28: Days on
A29: Feed Costs | B29: $/unit | D29: Requirement | G29: Feed
A31: Rolled Barley | B31: 6.25 | C31: /bu | D31: 18.5 | E31: (lbs/day ) | G31: =D24 -> 231
A32: Barley Silage | B32: 55 | C32: /ton | D32: 12.5 | E32: (lbs/day ) | G32: =D24 -> 231
A33: Alfalfa Grass Hay | B33: 120 | C33: /ton | D33: 5 | E33: (lbs/day ) | G33: 15
A34: Supplement 32% | B34: 500 | C34: /tonne | D34: 1 | E34: (lbs/day ) | G34: =D24 -> 231
A35: Other Feed #2 | B35: 0 | D35: 0 | E35: (lbs/day )
A36: Salt, Vitamins & Mineral | B36: 0 | C36: /lb | D36: 0 | E36: (lbs/year)
A38: FOOTNOTE: 1 bushel (bu) barley = 48 lbs = 21.8 kg
A39: 1 kilogram (kg) = 2.2046 pounds (lbs)
A40: 1 tonne (t) = 1,000 kg
A42: Other Operating Costs | E42: Total
A44: Feeder Purchase Costs
A45: Buying Commission | E45: 1 | G45: /cwt
A46: Insurance | E46: 1.75 | G46: /head
A47: Trucking Cost | E47: 1.7 | G47: /cwt
A49: Straw
A50: Tons/feeder | E50: 0.5 | G50: tons
A51: Cost | E51: 70 | G51: /ton
A53: Veterinary Medicine & Supplies
A54: Cattle Medication
A55: Cost/Head(IBR,BVD,PI3,BVD,BRSV, Pasteurella) | E55: 6
A56: Vitamin A-D | E56: 0.5
A57: External & Internal Parasites | E57: 0.96
A58: Blackleg & Haemophilus | E58: 1.65
A59: Growth Implants | E59: 3.42
A60: Antibiotics | E60: 15
A62: Herd health program
A63: Professional Services
A64: Total Yearly Hours | E64: 2 | G64: hours
A65: Charge per Hour | E65: 160 | G65: /hour
A66: Transportation
A67: Total Kilometres (round trip) | E67: 80 | G67: km
A68: Charge per km | E68: 1 | G68: /km
A69: Number of Yearly Visits | E69: 2
A71: Annual Fuel & Repair Costs
A72: a) Machinery Fuel Costs - Winter Feeding
A73: Tractor with Loader PTO hp | E73: 120
A74: Diesel Fuel Cost | E74: 1.4 | F74: /litre
A75: Tractor Hours Per Day (average) | E75: 1.5 | F75: hours
A76: b) Machinery Repair (% of investment cost) | E76: 1.2 | F76: %
A77: c) Building maintenance (% of investment cost) | E77: 2.2 | F77: %
A79: Utilities
A80: Hydro - Rate | E80: 0.09324 | F80: / kWh
B81: 18 | C81: kWh per feeder | E81: =SUM(B81*D24*E80) -> 387.69192
B82: 3 | C82: 1000 watt waterer | E82: =SUM(B82*18)*(D13)*E80 -> 2517.48
D83: Total Hydro | E83: =SUM(E81:E82) -> 2905.17192
A84: Telephone | E84: 600
A86: Marketing Costs
A87: Trucking Cost
A88: Distance | E88: 700 | G88: miles
A89: Rate | E89: 6.5 | G89: /loaded mile
A90: Truck Capacity | E90: 54000 | G90: lbs/load
A91: Number of head per load | E91: =E90/D17 -> 38.57142857 | G91: per load
A92: Selling commission | E92: 0 | G92: /head
A93: Other Costs
A94: MBP/NCO Levy $/Head | E94: 5.5 | G94: /head
A96: Manure Removal
A97: Annual Cost for Removal | E97: 7000
A99: Insurance
A100: Cost per $100 Capital Invested in:
A101: a) Livestock | E101: 0
A102: b) Building & Equipment | E102: 0.4
A103: Additional Coverage for Liability | E103: 49
A105: Barn & Office Supplies
A106: Total yearly expense relating to barn | E106: 900
A108: Operating Interest Rate | E108: 9 | F108: %
A109: Investment Interest Rate | E109: 4 | F109: %
A111: FOOTNOTE: cwt = hundred-weight = 100 lbs
A113: Capital Costs
D114: Original | F114: Salvage | G114: Useful
A115: Buildings,Corrals & Water System | D115: Value | F115: Value | G115: Life
A116: Windbreak fence | D116: 7350 | E116: 10 | F116: % | G116: 20 | H116: years
A117: Pens | D117: 4540 | E117: 10 | F117: % | G117: 20 | H117: years
A118: Shelters | D118: 0 | E118: 10 | F118: % | G118: 20 | H118: years
A119: Handling Facilities | D119: 7500 | E119: 10 | F119: % | G119: 20 | H119: years
A120: Waterers | D120: 6000 | E120: 10 | F120: % | G120: 20 | H120: years
A121: Gates | D121: 2000 | E121: 10 | F121: % | G121: 20 | H121: years
A122: Bunk Feeders | D122: 25000 | E122: 10 | F122: % | G122: 20 | H122: years
A123: Well & Pressure System | D123: 8000 | E123: 10 | F123: % | G123: 20 | H123: years
A124: Grain Bin | D124: 5000 | E124: 10 | F124: % | G124: 20 | H124: years
A125: Landscaping | D125: 17500 | E125: 10 | F125: % | G125: 20 | H125: years
A126: Total | D126: =SUM(D116:D125) -> 82890
A128: Machinery & Equipment
A129: =" Tractors & Loader ($"&TEXT(K129,"#,###")&" @ "&L129&"%)" -> Tractors & Loader ($175,000 @ 40%) | D129: =SUM(K129*(L129/100)) -> 70000 | E129: 20 | F129: % | G129: 10 | H129: years | K129: 175000 | L129: 40 | M129: %
A130: Miscellaneous | D130: 60000 | E130: 20 | F130: % | G130: 10 | H130: years
A132: Total Investment | D132: =D126+D129+D130 -> 212890
A134: Labour Costs | E134: Total
A136: Labour Hours | E136: 2 | F136: hours/head
A137: Labour Rate | E137: 27 | F137: /hour

Sheet Details
A1: Feedlot Finishing Production Cost Worksheet
A3: Assumptions
B5: ="1. Average daily gain (ADG) was assumed to be "&Input!D23&" lbs/day." -> 1. Average daily gain (ADG) was assumed to be 3.25 lbs/day.
B6: ="2. It was assumed that the feeder steer weighed in at "&Input!D15&" lbs., and finished at "&Input!D17&" lbs" -> 2. It was assumed that the feeder steer weighed in at 650 lbs., and finished at 1400 lbs
B7: =" ( "&ROUND(Input!D17-(Input!D17*Input!D21/100),0)&" lbs after a "&Input!D21&"% shrink.)" -> ( 1330 lbs after a 5% shrink.)
B8: ="3. Days on feed was "&Input!D24&". Hay was fed for "&Input!G33&" days." -> 3. Days on feed was 231. Hay was fed for 15 days.
B9: ="4. Investment in feedlot facilities and equipment was assumed to handle "&Input!D13&" head." -> 4. Investment in feedlot facilities and equipment was assumed to handle 500 head.
A11: A. Operating Costs | I11: Your Cost
B13: 1. Feed Costs
B14: 1.01 Rolled Barley
E15: =Input!D24 -> 231 | G15: days on grain
D16: x | E16: =Input!D31 -> 18.5 | G16: lbs/feeder/day
D17: ÷ | E17: 48 | G17: lbs/bushel
D18: x | E18: =Input!B31 -> 6.25 | G18: /bushel
D19: = | E19: =ROUND(E15*E16/48*E18,2) -> 556.45 | G19: /feeder
B21: 1.02 Barley Silage
E22: =Input!D24 -> 231 | G22: days on silage
D23: x | E23: =Input!D32 -> 12.5 | G23: lbs/feeder/day
D24: ÷ | E24: 2000 | G24: lbs/ton
D25: x | E25: =Input!B32 -> 55 | G25: /ton
D26: = | E26: =ROUND(E25*(E22*E23/2000),2) -> 79.41 | G26: /feeder
B28: 1.03 Alfalfa Grass Hay
E29: =Input!G33 -> 15 | G29: days on hay
D30: x | E30: =Input!D33 -> 5 | G30: lbs/feeder/day
D31: ÷ | E31: 2000 | G31: lbs/ton
D32: x | E32: =Input!B33 -> 120 | G32: /ton
D33: = | E33: =ROUND((E29*E30/E31)*E32,2) -> 4.5 | G33: /feeder
B35: 1.04 Supplement (Salt, Vitamins, Minerals, Ionophore)
E36: =Input!G34 -> 231 | G36: days on supplement
D37: x | E37: =Input!D34 -> 1 | G37: lbs/feeder/day
D38: ÷ | E38: 2205 | G38: lbs/tonne
D39: x | E39: =Input!B34 -> 500 | G39: /tonne
D40: = | E40: =ROUND((E36*E37/E38)*E39,2) -> 52.38 | G40: /feeder
B42: 2. Other Operating Costs
B44: 2.01 Feeder Cattle Cost
C45: Buying Commission & insurance
E46: =Input!E45*Input!D15/100 -> 6.5 | G46: commission/feeder
E47: =Input!E46 -> 1.75 | G47: insurance/feeder
C48: Trucking-in
E49: =Input!E47 -> 1.7 | G49: /cwt
D50: x | E50: =Input!D15 -> 650 | G50: lbs/feeder
D51: ÷ | E51: 100 | G51: lbs/cwt
D52: = | E52: =ROUND((E49*E50)/E51,2) -> 11.05 | G52: /feeder
E54: =Input!D15 -> 650 | G54: lbs/feeder
D55: x | E55: =Input!D16 -> 350 | G55: /cwt
D56: ÷ | E56: 100 | G56: lbs/cwt
D57: = | E57: =ROUND(E54/100*E55,2) -> 2275 | G57: /feeder
C59: Total | D59: = | E59: =ROUND(E46+E47+E52+E57,2) -> 2294.3 | G59: /feeder
B61: 2.02 Straw
E62: =Input!E50 -> 0.5 | G62: tons/feeder/year
D63: x | E63: =Input!E51 -> 70 | G63: /ton
D64: = | E64: =ROUND(E62*E63,2) -> 35 | G64: /feeder
B66: 2.03 Veterinary Medicine & Supplies
C67: Cattle Medication
E68: =Input!E55 -> 6 | G68: IBR,PI3,BVD,BRSV & Pasteurella
D69: + | E69: =Input!E56 -> 0.5 | G69: Vitamin A,D & E
D70: + | E70: =Input!E57 -> 0.96 | G70: External & Internal Parasites
D71: + | E71: =Input!E58 -> 1.65 | G71: Blackleg & Haemphilus
D72: + | E72: =Input!E59 -> 3.42 | G72: Implant
D73: + | E73: =Input!E60 -> 15 | G73: Antibiotics
D74: = | E74: =SUM(E68:E73) -> 27.53 | G74: /feeder
C76: Professional Services
E77: =Input!E65 -> 160 | G77: /hour charge
D78: x | E78: =Input!E64 -> 2 | G78: hours
D79: ÷ | E79: =Input!D13 -> 500 | G79: feeder cattle
D80: = | E80: =ROUND(E77*E78/E79,2) -> 0.64 | G80: /feeder
C82: Transportation Costs
E83: =Input!E68 -> 1 | G83: /km charge
D84: x | E84: =Input!E67 -> 80 | G84: kilometres
D85: x | E85: =Input!E69 -> 2 | G85: visits
D86: ÷ | E86: =Input!D13 -> 500 | G86: feeder cattle
D87: = | E87: =ROUND(E83*E84*E85/E86,2) -> 0.32 | G87: /feeder
C89: Total | D89: = | E89: =ROUND(E87+E80+E74,2) -> 28.49 | G89: /feeder
B91: 2.04 Annual Fuel & Repair Costs
C92: Machinery fuel cost
E93: =Input!E73 -> 120 | G93: PTO hp
D94: ÷ | E94: 2.5 | G94: avg HP required
D95: x | E95: 0.1665576 | G95: litres fuel/hour/hp
D96: x | E96: =Input!E75 -> 1.5 | G96: hours per day
D97: x | E97: =Input!E74 -> 1.4 | G97: diesel / litre
D98: x | E98: =Input!D24 -> 231 | G98: days on feed
E99: =IF(E98="ERROR","ERROR",ROUND(((E93/E94)*E95*E96*E97*E98),2)) -> 3878.26 | G99: annual fuel cost
D100: ÷ | E100: =Input!D13 -> 500 | G100: feeders
D101: = | E101: =SUM(E99/E100) -> 7.75652 | G101: /feeder
C102: Machinery repair & maintenance
E103: =Input!D129+Input!D130 -> 130000 | G103: machinery capital cost
D104: x | E104: =Input!E76 -> 1.2 | G104: % repair rate
D105: = | E105: =SUM(E103*(E104/100)) -> 1560 | G105: oil, repairs & maintenance
D106: ÷ | E106: =Input!D13 -> 500 | G106: feeders
D107: = | E107: =SUM(E105/E106) -> 3.12 | G107: /feeder
C108: Building repair & maintenance
E109: =Input!D126 -> 82890 | G109: building capital cost
D110: x | E110: =Input!E77 -> 2.2 | G110: % repair rate
D111: = | E111: =SUM(E109*(E110/100)) -> 1823.58 | G111: oil, repairs & maintenance
D112: ÷ | E112: =Input!D13 -> 500 | G112: feeders
D113: = | E113: =SUM(E111/E112) -> 3.64716 | G113: /feeder
D115: = | E115: =SUM(E113+E107+E101) -> 14.52368 | G115: /feeder
B117: 2.05 Utilities
E118: =SUM(Input!E83:E84) -> 3505.17192 | G118: utilities
D119: ÷ | E119: =Input!D13 -> 500 | G119: feeder cattle
D120: = | E120: =ROUND((E118)/E119,2) -> 7.01 | G120: /feeder
B122: 2.06 Marketing & Transportation
E123: =Input!E94 -> 5.5 | G123: MBP Levy
D124: + | E124: =Input!D20*(Input!D17/100) -> 0 | G124: WLPIP Insurance Premium
D125: + | E125: =Input!E92 -> 0 | G125: commission
D126: = | E126: =SUM(E125+E123+E124) -> 5.5 | G126: /feeder
C128: Trucking | E128: =Input!E88 -> 700 | G128: miles
D129: x | E129: =Input!E89 -> 6.5 | G129: /loaded mile
D130: ÷ | E130: =ROUND(Input!E91,0) -> 39 | G130: head/load
D131: = | E131: =ROUND(E128*E129/E130,2) -> 116.67 | G131: /feeder
C133: Total | D133: = | E133: =+E126+E131 -> 122.17 | G133: /feeder
B135: 2.07 Insurance
E136: =Input!D132 -> 212890 | G136: building & equipment investment
D137: x | E137: =Input!E102 -> 0.4 | G137: /$100 capital
D138: ÷ | E138: 100 | G138: /$100 capital
D139: ÷ | E139: =Input!D13 -> 500 | G139: feeder cattle
D140: = | E140: =ROUND(E136*E137/E138/E139,2) -> 1.7 | G140: /feeder/year
E142: =ROUND((((Input!D15*Input!D16/100)+(Input!D17*Input!D18/100))/2)*Input!D13,2) -> 1436750 | G142: feeder investment
D143: x | E143: =Input!E101 -> 0 | G143: /$100 capital
D144: ÷ | E144: 100 | G144: /$100
D145: ÷ | E145: =Input!D13 -> 500 | G145: feeder cattle
D146: = | E146: =ROUND(E142*E143/E144/E145,2) -> 0 | G146: /feeder/year
E148: =Input!E103 -> 49 | G148: liability premium
D149: ÷ | E149: =Input!D13 -> 500 | G149: feeder cattle
D150: = | E150: =ROUND(E148/E149,2) -> 0.1 | G150: /feeder/year
C152: Total | D152: = | E152: =ROUND(E150+E146+E140,2) -> 1.8 | G152: /feeder
B154: 2.08 Manure Removal
E155: =Input!E97 -> 7000 | G155: removal cost
D156: ÷ | E156: =Input!D13 -> 500 | G156: feeder cattle
D157: = | E157: =ROUND(E155/E156,2) -> 14 | G157: /feeder
B159: 2.09 Barn & Office Supplies
E160: =Input!E106 -> 900 | G160: total barn expenses
D161: ÷ | E161: =Input!D13 -> 500 | G161: feeder cattle
D162: = | E162: =ROUND(E160/E161,2) -> 1.8 | G162: /feeder
B164: 2.10 Death Loss
E165: =E59 -> 2294.3 | G165: feeder cattle cost
D166: + | E166: =SUM(Summary!F11:F21) -> 3211.83368 | G166: maximum value
D167: - | E167: =Summary!F18 -> 122.17 | G167: marketing costs
D168: ÷ | E168: 2 | G168: average value
D169: x | E169: =Input!D14 -> 2 | G169: % mortality rate
D170: = | E170: =ROUND(((E165+E166-E167)/E168)*E169/100,2) -> 53.84 | G170: /feeder
B172: 2.11 Operating Interest
E173: =E59 -> 2294.3 | G173: feeder cost
D174: + | E174: =(Summary!F11+SUM(Summary!F14:F21))/2 -> 458.76684 | G174: ½ of feed & other costs
D175: x | E175: =Input!E108 -> 9 | G175: % operating interest
D176: x | E176: =Input!D24 -> 231 | G176: days on feed
D177: ÷ | E177: 365 | G177: 365 days
D178: = | E178: =ROUND(((E173+E174)*(E175))*(E176/E177/100),2) -> 156.81 | G178: /feeder
B180: Capital Costs
B182: Buildings,Corrals
B183: & Water System
B184: Windbreak fence | G184: =Input!D116 -> 7350
B185: Pens | G185: =Input!D117 -> 4540
B186: Handling Facilities | G186: =Input!D119 -> 7500
B187: Waterers | G187: =Input!D120 -> 6000
B188: Gates | G188: =Input!D121 -> 2000
B189: Bunk Feeders | G189: =Input!D122 -> 25000
B190: Well & Pressure System | G190: =Input!D123 -> 8000
B191: Grain Bin | G191: =Input!D124 -> 5000
B192: Landscaping | G192: =Input!D125 -> 17500
B193: Total | G193: =SUM(G184:G192) -> 82890
B195: Machinery & Equipment
B196: Tractor & Loader | G196: =Input!D129 -> 70000
B197: Miscellaneous | G197: =Input!D130 -> 60000
B198: Total | G198: =G196+G197 -> 130000
B200: Total Investment | G200: =G193+G196+G197 -> 212890
A202: B. Fixed Costs
B204: 3. Depreciation | E204: Original Cost - Salvage Value
E205: Useful Life
B206: 3.01 Buildings
E207: =Input!D126 -> 82890 | G207: original cost
D208: - | E208: =ROUND(Input!D126*(Input!E116/100),2) -> 8289 | G208: salvage value
D209: ÷ | E209: =Input!G116 -> 20 | G209: years useful life
D210: ÷ | E210: =Input!D13 -> 500 | G210: feeder cattle
D211: = | E211: =ROUND(((E207-E208)/E209/E210),2) -> 7.46 | G211: /feeder
B213: 3.02 Machinery & Equipment
E214: =Input!D129+Input!D130 -> 130000 | G214: original cost
D215: - | E215: =ROUND(E214*(Input!E129/100),2) -> 26000 | G215: salvage value
D216: ÷ | E216: =Input!G129 -> 10 | G216: years useful life
D217: ÷ | E217: =Input!D13 -> 500 | G217: feeder cattle
D218: = | E218: =ROUND(((E214-E215)/E216/E217),2) -> 20.8 | G218: /feeder
B220: 4. Investment | E220: Original Cost + Salvage Value x Investment Rate
F221: 2
B222: 4.01 Buildings
E223: =E207 -> 82890 | G223: original cost
D224: + | E224: =E208 -> 8289 | G224: salvage value
D225: ÷ | E225: 2 | G225: average
D226: x | E226: =Input!E109 -> 4 | G226: % investment rate
D227: ÷ | E227: =Input!D13 -> 500 | G227: feeder cattle
D228: = | E228: =ROUND(((E223+E224)/E225*(E226/100)/E227),2) -> 3.65 | G228: /feeder
B230: 4.02 Machinery & Equipment
E231: =E214 -> 130000 | G231: original cost
D232: + | E232: =E215 -> 26000 | G232: salvage value
D233: ÷ | E233: 2 | G233: average
D234: x | E234: =Input!E109 -> 4 | G234: % investment rate
D235: ÷ | E235: =Input!D13 -> 500 | G235: feeder cattle
D236: = | E236: =ROUND(((E231+E232)/E233*(E234/100)/E235),2) -> 6.24 | G236: /feeder
A238: C. Labour
E239: =Input!E136 -> 2 | G239: hours/feeder/year
D240: x | E240: =Input!E137 -> 27 | G240: /hour
... 1 more rows

Sheet Breakeven
A2: Breakeven Calculations
A4: Cost per lb of gain sold | J4: Your Farm
B5: Feed Costs | E5: =Summary!F11 -> 692.74 | G5: feed cost
D6: ÷ | E6: =(Input!$D$17-(Input!$D$17*Input!$D$21/100))-(Input!$D$15-(Input!$D$15*Input!$D$22/100)) -> 680 | G6: weight gain (lb)
D7: = | E7: =E5/E6 -> 1.018735294 | G7: /lb
B9: Operating Costs | E9: =Summary!F25 -> 3422.48368 | G9: operating costs
D10: - | E10: =Details!$E$57 -> 2275 | G10: feeder cost
D11: ÷ | E11: =(Input!$D$17-(Input!$D$17*Input!$D$21/100))-(Input!$D$15-(Input!$D$15*Input!$D$22/100)) -> 680 | G11: weight gain (lb)
D12: = | E12: =(E9-E10)/E11 -> 1.687476 | G12: /lb
B14: Operating & Labour Costs | E14: =Summary!F25+Summary!F36 -> 3476.48368 | G14: operating & labour
D15: - | E15: =Details!$E$57 -> 2275 | G15: feeder cost
D16: ÷ | E16: =(Input!$D$17-(Input!$D$17*Input!$D$21/100))-(Input!$D$15-(Input!$D$15*Input!$D$22/100)) -> 680 | G16: weight gain (lb)
D17: = | E17: =(E14-E15)/E16 -> 1.766887765 | G17: /lb
B19: Total Operating & Fixed | E19: =Summary!F34 -> 3460.63368 | G19: operating & fixed
D20: - | E20: =Details!$E$57 -> 2275 | G20: feeder cost
D21: ÷ | E21: =(Input!$D$17-(Input!$D$17*Input!$D$21/100))-(Input!$D$15-(Input!$D$15*Input!$D$22/100)) -> 680 | G21: weight gain (lb)
D22: = | E22: =(E19-E20)/E21 -> 1.743578941 | G22: /lb
B24: Total Costs | E24: =Summary!F37 -> 3514.63368 | G24: total
D25: - | E25: =Details!$E$57 -> 2275 | G25: feeder cost
D26: ÷ | E26: =(Input!$D$17-(Input!$D$17*Input!$D$21/100))-(Input!$D$15-(Input!$D$15*Input!$D$22/100)) -> 680 | G26: weight gain (lb)
D27: = | E27: =(E24-E25)/E26 -> 1.822990706 | G27: /lb
A28: Breakeven selling price
B29: Operating Costs | E29: =Summary!F25 -> 3422.48368 | G29: operating costs
D30: ÷ | E30: =(Input!$D$17-(Input!$D$17*Input!$D$21/100)) -> 1330 | G30: lbs shrunk weight
D31: = | E31: =E29/E30 -> 2.573296 | G31: /lb
B33: Operating & Labour | E33: =Summary!F36+Summary!F25 -> 3476.48368 | G33: operating & labour costs
D34: ÷ | E34: =(Input!$D$17-(Input!$D$17*Input!$D$21/100)) -> 1330 | G34: lbs shrunk weight
D35: = | E35: =E33/E34 -> 2.613897504 | G35: /lb
B37: Operating & Fixed | E37: =Summary!F34 -> 3460.63368 | G37: operating & fixed costs
D38: ÷ | E38: =(Input!$D$17-(Input!$D$17*Input!$D$21/100)) -> 1330 | G38: lbs shrunk weight
D39: = | E39: =E37/E38 -> 2.601980211 | G39: /lb
B41: Total Costs | E41: =Summary!F37 -> 3514.63368 | G41: total costs
D42: ÷ | E42: =(Input!$D$17-(Input!$D$17*Input!$D$21/100)) -> 1330 | G42: lbs shrunk weight
D43: = | E43: =E41/E42 -> 2.642581714 | G43: /lb
A45: Breakeven purchase price
B46: Operating Costs | E46: =(Input!$D$17-(Input!$D$17*Input!$D$21/100)) -> 1330 | G46: lbs shrunk weight
D47: x | E47: =Input!$D$18 -> 248 | G47: $/cwt selling price
D48: = | E48: =(E46*E47)/100 -> 3298.4 | G48: income
D49: - | E49: =Summary!F25-Details!E57 -> 1147.48368 | G49: operating less feeder cost
D50: ÷ | E50: =Input!$D$15-(Input!$D$15*(Input!$D$22/100)) -> 650 | G50: lbs purchase net weight
D51: = | E51: =(E48-E49)/E50 -> 3.309102031 | G51: /lb
B53: Operating & Labour | E53: =(Input!$D$17-(Input!$D$17*Input!$D$21/100)) -> 1330 | G53: lbs shrunk weight
D54: x | E54: =Input!$D$18 -> 248 | G54: $/cwt selling price
D55: = | E55: =(E53*E54)/100 -> 3298.4 | G55: income
D56: - | E56: =(Summary!F25+Summary!F36)-Details!E57 -> 1201.48368 | G56: op & labour less feeder cost
D57: ÷ | E57: =Input!$D$15-(Input!$D$15*(Input!$D$22/100)) -> 650 | G57: lbs purchase weight
D58: = | E58: =(E55-E56)/E57 -> 3.226025108 | G58: /lb
B60: Operating & Fixed | E60: =(Input!$D$17-(Input!$D$17*Input!$D$21/100)) -> 1330 | G60: lbs shrunk weight
D61: x | E61: =Input!$D$18 -> 248 | G61: $/cwt selling price
D62: = | E62: =(E60*E61)/100 -> 3298.4 | G62: income
D63: - | E63: =Summary!F34-Details!E57 -> 1185.63368 | G63: op & fixed less feeder cost
D64: ÷ | E64: =Input!$D$15-(Input!$D$15*(Input!$D$22/100)) -> 650 | G64: lbs purchase weight
D65: = | E65: =(E62-E63)/E64 -> 3.250409723 | G65: /lb
B67: Total Costs | E67: =(Input!$D$17-(Input!$D$17*Input!$D$21/100)) -> 1330 | G67: lbs shrunk weight
D68: x | E68: =Input!$D$18 -> 248 | G68: $/cwt selling price
D69: = | E69: =(E67*E68)/100 -> 3298.4 | G69: income
D70: - | E70: =Summary!F37-Details!E57 -> 1239.63368 | G70: total less feeder cost
D71: ÷ | E71: =Input!$D$15-(Input!$D$15*(Input!$D$22/100)) -> 650 | G71: lbs purchase weight
D72: = | E72: =(E69-E70)/E71 -> 3.1673328 | G72: /lb
A74: Profitability and Breakeven Analysis:
A75: ="Gross Revenue = Shrunk weight (lbs) x $/lb price (eg. "&E46&" x $"&TEXT(E47/100,"0.00")&"/lb = $"&TEXT(E48,"0.00")&")" -> Gross Revenue = Shrunk weight (lbs) x $/lb price (eg. 1330 x $2.48/lb = $3298.40)
A76: ="Return on Investment (ROI) = (Gross Revenue - Total Cost) / Total Cost (eg. ($"&TEXT(Summary!F42,"0.00")&" - $"&TEXT(Summary!F37,"0.00")&") / $"&TEXT(Summary!F37,"0.00")&" = "&TEXT(100*Summary!F61,"0.0")&"%" -> Return on Investment (ROI) = (Gross Revenue - Total Cost) / Total Cost (eg. ($3298.40 - $3514.63) / $3514.63 = -6.2%
A78: ="Return on Asset (ROA) = (Margin Over Operating - Labour - Building Depreciation - Machinery Depreciation) / (Building, Machinery & Equipment Investment / Herd Size) (eg. ($"&TEXT(Summary!H56,"0.00")&" - $"&TEXT(Summary!F36,"0.00")&" - $"&TEXT(Summary!F28,"0.00")&" - $"&TEXT(Summary!F29,"0.00")&") / ($"&TEXT(Input!D132,"#,###")&" / "&Input!D12&") = "&TEXT(100*Summary!F62,"0.0")&"%" -> Return on Asset (ROA) = (Margin Over Operating - Labour - Building Depreciation - Machinery Depreciation) / (Building, Machinery & Equipment Investment / Herd Size) (eg. ($-124.08 - $54.00 - $7.46 - $20.80) / ($212,890 / ) = -48.5%
J82: September, 2023

Sheet Feedlot
A2: Beef Finishing Feedlot 500 Head
